bitfinex-derivatives/quotes_BTCF0:USTF0_20240824
["timestamp","ask_amount","ask_price","bid_price","bid_amount"]
[1724539995428,0.078194,63914.0,63912.0,4e-05]
[1724539995627,0.078194,63914.0,63913.0,0.04656433]
[1724539996834,0.085194,63914.0,63913.0,0.04656433]
[1724539997032,0.085194,63914.0,63912.0,0.04660433]
[1724539997333,0.085194,63914.0,63913.0,0.04656433]
[1724539997530,0.085194,63914.0,63912.0,0.04660433]
[1724539997731,0.078196,63913.0,63912.0,0.04660433]
[1724539997928,0.07824573,63913.0,63912.0,0.04660433]
[1724539998330,0.07824573,63913.0,63912.0,4e-05]
[1724539998634,0.07828573,63913.0,63912.0,4e-05]
[1724539999933,0.08128573,63913.0,63912.0,4e-05]
[1724540000131,0.08628573,63913.0,63912.0,4e-05]
[1724540002634,0.44708573,63913.0,63912.0,4e-05]
[1724540003745,0.54708573,63913.0,63912.0,4e-05]
[1724540008038,0.18628573,63913.0,63912.0,4e-05]
[1724540008338,0.26448173,63913.0,63912.0,4e-05]
[1724540011132,0.62528173,63913.0,63912.0,4e-05]
[1724540012139,0.54708573,63913.0,63912.0,4e-05]
[1724540015938,0.18628573,63913.0,63912.0,4e-05]
[1724540020237,0.18628573,63913.0,63912.0,0.04660433]
[1724540021146,0.18628573,63913.0,63912.0,4e-05]
[1724540021346,0.10808973,63913.0,63912.0,4e-05]
[1724540021949,0.10808973,63913.0,63912.0,0.078237]
[1724540023041,0.10808973,63913.0,63912.0,0.14027822]
[1724540023242,0.10808973,63913.0,63912.0,0.078237]
[1724540023835,0.10808973,63913.0,63912.0,0.14037259]
[1724540024149,0.10808973,63913.0,63912.0,0.078237]
[1724540024345,0.10808973,63913.0,63912.0,0.1403876]
[1724540024648,0.10808973,63913.0,63912.0,0.078237]
[1724540033040,0.10808973,63913.0,63912.0,0.14039029]
[1724540035459,0.10808973,63913.0,63912.0,0.078237]
[1724540037850,0.10808973,63913.0,63912.0,0.14037843]
[1724540038049,0.10808973,63913.0,63912.0,0.078237]
[1724540039554,0.18628573,63913.0,63912.0,0.06218672]
[1724540040260,0.18628573,63913.0,63912.0,4e-05]
[1724540040658,0.18328573,63913.0,63912.0,4e-05]
[1724540040959,0.18528573,63913.0,63912.0,4e-05]
[1724540053364,0.18528573,63913.0,63912.0,0.02448871]
[1724540057562,0.18528573,63913.0,63912.0,0.02448901]
[1724540058459,0.08528573,63913.0,63912.0,0.02448901]
[1724540058664,0.18528573,63913.0,63912.0,0.02448901]
[1724540060462,0.18528573,63913.0,63912.0,0.02448905]
[1724540062470,0.18528573,63913.0,63912.0,0.06221989]
[1724540062677,0.18528573,63913.0,63912.0,0.06221925]
[1724540062870,0.18528573,63913.0,63912.0,0.06221957]
[1724540063176,0.18528573,63913.0,63912.0,0.06221994]
[1724540063575,0.18528573,63913.0,63912.0,4e-05]
[1724540064076,0.18528573,63913.0,63912.0,0.06221726]
[1724540064378,0.18528573,63913.0,63912.0,4e-05]
[1724540064880,0.18528573,63913.0,63912.0,0.02448852]
[1724540065976,0.18528573,63913.0,63912.0,4e-05]
[1724540066276,0.18528573,63913.0,63912.0,0.0244882]
[1724540067280,0.18528573,63913.0,63912.0,4e-05]
[1724540067786,0.18528573,63913.0,63912.0,0.02448823]
[1724540068479,0.18528573,63913.0,63912.0,0.02448831]
[1724540070080,0.18528573,63913.0,63912.0,0.10268531]
[1724540070081,0.00708973,63913.0,63912.0,0.10268531]
[1724540070286,0.1,63918.0,63912.0,0.58206464]
[1724540070576,0.1,63918.0,63916.0,0.07763734]
[1724540070776,0.1,63918.0,63917.0,0.02444831]
[1724540070982,0.1,63918.0,63917.0,0.29944999]
[1724540071376,0.1,63918.0,63917.0,0.078231]
[1724540071377,0.105,63918.0,63917.0,0.078231]
[1724540071576,0.107,63918.0,63917.0,0.1026756]
[1724540072280,0.112,63918.0,63917.0,0.1026756]
[1724540073484,0.11,63918.0,63917.0,0.1026756]
[1724540073782,0.118,63918.0,63917.0,0.1026756]
[1724540074284,0.118,63918.0,63917.0,0.4634756]
[1724540076086,0.118,63918.0,63917.0,0.439031]
[1724540076387,0.118,63918.0,63917.0,0.50102481]
[1724540076782,0.018,63918.0,63917.0,0.50102481]
[1724540076976,0.118,63918.0,63917.0,0.50102481]
[1724540077173,0.196189,63918.0,63917.0,0.50102481]
[1724540080286,0.196189,63918.0,63917.0,0.42283381]
[1724540080481,0.196189,63918.0,63917.0,4e-05]
[1724540080790,0.196189,63918.0,63917.0,0.04653729]
[1724540086085,0.196189,63918.0,63917.0,4e-05]
[1724540088494,0.196189,63918.0,63917.0,0.04653729]
[1724540090993,0.196189,63918.0,63917.0,4e-05]
[1724540099291,0.196189,63918.0,63917.0,0.06203381]
[1724540099908,0.196189,63918.0,63917.0,4e-05]
[1724540104406,0.196189,63918.0,63917.0,0.06203381]
[1724540104703,0.196189,63918.0,63917.0,4e-05]
[1724540105301,0.196189,63918.0,63917.0,0.06203381]
[1724540105502,0.196189,63918.0,63917.0,4e-05]
[1724540105808,0.196189,63918.0,63917.0,0.06203381]
[1724540107214,0.096189,63918.0,63917.0,0.06203381]
[1724540107410,0.096189,63918.0,63917.0,0.439031]
[1724540107411,0.018,63918.0,63917.0,0.439031]
[1724540107714,0.018,63918.0,63917.0,0.51666834]
[1724540107910,0.018,63918.0,63917.0,0.58261199]
[1724540108416,0.018,63918.0,63917.0,0.58261152]
[1724540108714,0.018,63918.0,63917.0,0.55816724]
[1724540109111,0.018,63918.0,63917.0,0.58261159]
[1724540109311,0.018,63918.0,63917.0,0.55816724]
[1724540109610,0.018,63918.0,63917.0,1.45197154]
[1724540110909,0.018,63918.0,63917.0,1.45196614]
[1724540111510,0.018,63918.0,63917.0,1.45196506]
[1724540111714,0.01028714,63924.0,63923.0,0.078183]
[1724540111906,0.00023464,63928.0,63927.0,0.078178]
[1724540112102,0.00023464,63928.0,63927.0,0.1402033]
[1724540112302,0.00023464,63928.0,63927.0,0.078178]
[1724540112811,0.00023464,63928.0,63927.0,0.14020585]
[1724540113409,0.00023464,63928.0,63927.0,0.078218]
[1724540114406,0.00023464,63928.0,63927.0,0.547498]
[1724540114603,0.00023464,63928.0,63927.0,0.10265802]
[1724540114814,0.01123464,63928.0,63927.0,0.079218]
[1724540115120,0.01123464,63928.0,63927.0,0.57293812]
[1724540115314,0.02120643,63928.0,63927.0,0.548498]
[1724540115508,0.03520643,63928.0,63927.0,0.6114239]
[1724540116012,0.1,63936.0,63934.0,0.078169]
[1724540116715,0.1,63936.0,63935.0,4e-05]
[1724540117117,0.114,63936.0,63935.0,4e-05]
[1724540117718,0.126,63936.0,63935.0,4e-05]
[1724540118109,0.114,63936.0,63935.0,4e-05]
[1724540118314,0.117,63936.0,63935.0,0.00104]
[1724540118718,0.103,63936.0,63935.0,0.00204]
[1724540119922,0.003,63936.0,63935.0,0.00204]
[1724540120112,0.103,63936.0,63935.0,0.00204]
[1724540121517,0.103,63936.0,63935.0,0.04874]
[1724540122219,0.003,63936.0,63935.0,0.04874]
[1724540122410,0.003,63936.0,63935.0,0.271909]
[1724540123822,0.01007392,63937.0,63936.0,0.078167]
[1724540124014,0.178161,63941.0,63937.0,0.078166]
[1724540124215,0.18845251,63941.0,63937.0,0.078166]
[1724540124720,0.18845251,63941.0,63940.0,4e-05]
[1724540125414,0.19045251,63941.0,63940.0,4e-05]
[1724540126119,0.18845251,63941.0,63940.0,4e-05]
[1724540126317,0.19245251,63941.0,63940.0,0.00104]
[1724540126913,0.19045251,63941.0,63940.0,0.00104]
[1724540127119,0.19245251,63941.0,63940.0,0.00204]
[1724540127812,0.19245251,63941.0,63940.0,0.00104]
[1724540128013,0.19245251,63941.0,63940.0,0.00204]
[1724540135116,1.06165251,63941.0,63928.0,0.04644497]
[1724540135321,0.178175,63930.0,63926.0,0.40724497]
[1724540135516,0.178175,63930.0,63926.0,0.3608]
[1724540135729,0.272775,63930.0,63926.0,0.3608]
[1724540135924,0.272815,63930.0,63926.0,0.3608]
[1724540136722,0.225515,63930.0,63926.0,0.3608]
[1724540136921,0.080215,63930.0,63926.0,0.4608]
[1724540137223,0.080215,63930.0,63929.0,0.04667961]
[1724540137224,0.1,63930.0,63929.0,0.04667961]
[1724540137426,0.1,63930.0,63929.0,0.00023464]
[1724540137927,0.101,63930.0,63929.0,0.00023464]
[1724540138833,0.179175,63930.0,63929.0,0.00023464]
[1724540141030,0.228275,63930.0,63929.0,0.00023464]
[1724540150432,0.079175,63930.0,63929.0,0.00023464]
[1724540150732,0.179175,63930.0,63929.0,0.00023464]
[1724540157644,0.179175,63930.0,63929.0,0.04667961]
[1724540158037,0.079175,63930.0,63929.0,0.04667961]
[1724540158346,0.179175,63930.0,63929.0,0.00023464]
[1724540162042,0.001,63930.0,63929.0,0.00023464]
[1724540162249,0.179175,63930.0,63929.0,0.00023464]
[1724540162540,0.179175,63930.0,63929.0,0.08660298]
[1724540162742,0.179175,63930.0,63929.0,0.06216127]
[1724540162944,0.179175,63930.0,63929.0,0.08660276]
[1724540163239,0.179175,63930.0,63929.0,0.06216127]
[1724540163540,0.179175,63930.0,63929.0,0.00023464]
[1724540164140,0.179175,63930.0,63929.0,0.06223267]
[1724540164541,0.179175,63930.0,63929.0,0.00023464]
[1724540170051,0.079175,63930.0,63929.0,0.00023464]
[1724540170247,0.001,63930.0,63929.0,0.17841064]
[1724540170749,0.001,63930.0,63929.0,0.37506238]
[1724540170958,0.001,63930.0,63929.0,0.29752121]
[1724540171153,0.001,63930.0,63929.0,0.3219613]
[1724540172054,0.001,63930.0,63929.0,0.6827613]
[1724540172458,0.001,63930.0,63929.0,0.76027577]
[1724540174360,0.078171,63933.0,63932.0,0.078172]
[1724540174760,0.1,63935.0,63934.0,0.07817]
[1724540174967,0.01029801,63935.0,63934.0,0.14016764]
[1724540175159,0.178167,63937.0,63933.0,0.06199764]
[1724540175359,0.178167,63937.0,63934.0,0.06199764]
[1724540175560,0.1,63935.0,63934.0,0.14016764]
[1724540176065,0.1,63935.0,63934.0,0.07817]
[1724540176263,0.101,63935.0,63934.0,0.07917]
[1724540176764,0.101,63935.0,63934.0,0.14115582]
[1724540176966,0.101,63935.0,63934.0,0.10360872]
[1724540177363,0.103,63935.0,63934.0,0.10360872]
[1724540178164,0.103,63935.0,63934.0,0.07917]
[1724540178360,0.103,63935.0,63934.0,0.10360825]
[1724540181475,0.103,63935.0,63934.0,0.10360827]
[1724540183773,0.003,63935.0,63934.0,0.10360827]
[1724540184671,0.00023464,63942.0,63941.0,0.078161]
[1724540184875,0.00023464,63942.0,63941.0,0.26453479]
[1724540185075,0.00023464,63942.0,63941.0,0.178161]
[1724540185279,0.00023464,63942.0,63941.0,0.20259786]
[1724540185472,0.00023464,63942.0,63941.0,0.20263786]
[1724540185873,0.00123464,63942.0,63941.0,0.20363786]
[1724540187078,0.00123464,63942.0,63941.0,0.10363786]
[1724540187582,0.00123464,63942.0,63941.0,0.1655227]
[1724540187785,0.00123464,63942.0,63941.0,0.14108584]
[1724540187978,0.00123464,63942.0,63941.0,0.16552184]
[1724540189372,0.00123464,63942.0,63941.0,0.16550641]
[1724540189577,0.00123464,63942.0,63941.0,0.103637]
[1724540191272,0.00123464,63942.0,63941.0,0.10363598]
[1724540191476,0.00123464,63942.0,63941.0,0.14105903]
[1724540191876,0.00123464,63942.0,63941.0,0.079201]
[1724540192774,0.00123464,63942.0,63941.0,0.14106144]
[1724540193774,0.00123464,63942.0,63941.0,0.14107256]
[1724540194777,0.00123464,63942.0,63941.0,0.14108961]
[1724540196587,0.00123464,63942.0,63941.0,0.50188961]
[1724540199379,0.00123464,63942.0,63941.0,0.440001]
[1724540199580,0.00123464,63942.0,63941.0,0.079201]
[1724540199779,0.00123464,63942.0,63941.0,0.440001]
[1724540200985,0.07939464,63942.0,63941.0,0.36184]
[1724540201489,0.07939464,63942.0,63941.0,0.40829496]
[1724540202383,0.07939464,63942.0,63941.0,0.36184]
[1724540203187,0.07939464,63942.0,63941.0,0.00104]
[1724540206796,0.07939464,63942.0,63941.0,0.04749496]
[1724540208988,0.07939464,63942.0,63941.0,0.00104]
[1724540211295,0.07939464,63942.0,63941.0,0.42377127]
[1724540211485,0.07939464,63942.0,63941.0,0.36184]
[1724540212798,0.07939464,63942.0,63941.0,0.440001]
[1724540213185,0.07939464,63942.0,63941.0,0.46443628]
[1724540213701,0.07939464,63942.0,63941.0,0.10363628]
[1724540214086,0.07939464,63942.0,63941.0,0.46443628]
[1724540214390,0.07939464,63942.0,63941.0,0.10363628]
[1724540214598,0.07939464,63942.0,63941.0,0.440001]
[1724540215196,0.07939464,63942.0,63941.0,0.46443629]
[1724540215392,0.07939464,63942.0,63941.0,0.440001]
[1724540215593,0.07939464,63942.0,63941.0,0.46443629]
[1724540217996,0.07939464,63942.0,63941.0,0.10363629]
[1724540218303,0.07939464,63942.0,63941.0,0.46443629]
[1724540219199,0.07939464,63942.0,63941.0,0.440001]
[1724540219404,0.07939464,63942.0,63941.0,0.46443719]
[1724540219897,0.17939464,63942.0,63941.0,0.440001]
[1724540220100,0.17939464,63942.0,63941.0,0.44826798]
[1724540220306,0.17939464,63942.0,63941.0,0.42383206]
[1724540220803,0.17939464,63942.0,63941.0,0.36184]
[1724540221007,0.17939464,63942.0,63941.0,0.00104]
[1724540224505,0.17939464,63942.0,63941.0,0.06303206]
[1724540225396,0.17939464,63942.0,63941.0,0.00104]
[1724540225603,0.17939464,63942.0,63941.0,0.06302963]
[1724540227002,0.17939464,63942.0,63941.0,0.00104]
[1724540227908,0.25755464,63942.0,63941.0,0.00104]
[1724540228406,0.61835464,63942.0,63941.0,0.00104]
[1724540229305,0.25755464,63942.0,63941.0,0.00104]
[1724540229505,0.61835464,63942.0,63941.0,0.00104]
[1724540230893,0.61835464,63942.0,63932.0,0.078171]
[1724540230894,0.078165,63938.0,63932.0,0.06198963]
[1724540231094,1.33119464,63942.0,63932.0,0.04649781]
[1724540231095,0.438971,63933.0,63932.0,0.04649781]
[1724540231299,0.438971,63933.0,63929.0,0.00023464]
[1724540231300,0.078172,63932.0,63931.0,0.04649781]
[1724540231702,0.078172,63932.0,63929.0,0.00023464]
[1724540231703,0.078175,63930.0,63929.0,0.00023464]
[1724540232404,0.078215,63930.0,63929.0,0.00023464]
[1724540234012,0.078215,63930.0,63929.0,0.00523464]
[1724540234398,0.078215,63930.0,63929.0,0.04669517]
[1724540234608,0.079215,63930.0,63929.0,0.04769517]
[1724540235104,0.079215,63930.0,63929.0,0.00123464]
[1724540235407,0.179215,63930.0,63929.0,0.00123464]
[1724540236220,0.179215,63930.0,63929.0,0.07941064]
[1724540245106,0.179215,63930.0,63929.0,0.00123464]
[1724540257522,0.25739,63930.0,63929.0,0.00123464]
[1724540257812,0.25739,63930.0,63926.0,0.0464674]
[1724540257813,0.078177,63928.0,63922.0,0.0464674]
[1724540258012,0.078186,63921.0,63920.0,0.0464674]
[1724540258216,0.178186,63921.0,63920.0,0.0464674]
[1724540258416,0.178186,63921.0,63920.0,0.04654434]
[1724540258921,0.178186,63921.0,63917.0,0.06210963]
[1724540258922,0.078189,63918.0,63917.0,0.06210963]
[1724540259111,0.178189,63918.0,63917.0,0.06210963]
[1724540259512,0.178189,63918.0,63917.0,0.00012]
[1724540259815,0.178229,63918.0,63917.0,0.00012]
[1724540260320,0.178229,63918.0,63917.0,0.01312]
[1724540260506,0.178229,63918.0,63917.0,0.02512]
[1724540263120,0.178229,63918.0,63917.0,0.07163572]
[1724540263517,0.178229,63918.0,63917.0,0.02512]
[1724540264426,0.18839045,63918.0,63917.0,0.02512]
[1724540264813,0.18839045,63918.0,63917.0,0.07161569]
[1724540273226,0.18839045,63918.0,63917.0,0.02512]
[1724540279544,0.18839045,63918.0,63917.0,0.08710963]
[1724540281138,0.18839045,63918.0,63917.0,0.02512]
[1724540281349,0.18839045,63918.0,63917.0,0.08714729]
[1724540282341,0.18839045,63918.0,63917.0,0.0871508]
[1724540283250,0.18839045,63918.0,63917.0,0.02512]
[1724540284249,0.08839045,63918.0,63917.0,0.02512]
[1724540284444,0.18839045,63918.0,63917.0,0.02512]
[1724540287248,0.18839045,63918.0,63917.0,0.10261715]
[1724540287456,0.18839045,63918.0,63917.0,0.22176106]
[1724540287651,0.18839045,63918.0,63917.0,0.10261715]
[1724540289455,0.18839045,63918.0,63917.0,0.22175868]
[1724540290358,0.18839045,63918.0,63917.0,0.14426153]
[1724540291955,0.18839045,63918.0,63917.0,0.14425903]
[1724540292355,0.18839045,63918.0,63917.0,0.24632041]
[1724540294763,0.18839045,63918.0,63917.0,0.12718138]
[1724540294964,0.18839045,63918.0,63917.0,0.22187488]
[1724540295657,0.18839045,63918.0,63917.0,0.10273559]
[1724540296554,0.078191,63917.0,63913.0,0.07761559]
[1724540296756,0.156382,63917.0,63916.0,0.04659217]
[1724540296964,0.478191,63917.0,63915.0,0.04659224]
[1724540297154,0.078195,63913.0,63912.0,0.06209199]
[1724540297463,0.078195,63913.0,63912.0,0.08654103]
[1724540297862,0.078195,63913.0,63912.0,0.02444904]
[1724540297863,0.178195,63913.0,63912.0,0.02444904]
[1724540298761,0.178195,63913.0,63912.0,0.03744904]
[1724540298965,0.178195,63913.0,63912.0,0.013]
[1724540299162,0.178195,63913.0,63912.0,0.03744894]
[1724540299667,0.179195,63913.0,63912.0,0.04844894]
[1724540300162,0.179195,63913.0,63912.0,0.1104882]
[1724540301361,0.179195,63913.0,63912.0,0.04844894]
[1724540301562,0.179195,63913.0,63912.0,0.024]
[1724540304967,0.179235,63913.0,63912.0,0.024]
[1724540310974,0.179235,63913.0,63912.0,0.08603926]
[1724540315976,0.179235,63913.0,63912.0,0.024]
[1724540321187,0.179235,63913.0,63912.0,0.08603926]
[1724540323195,0.179235,63913.0,63912.0,0.024]
[1724540325297,0.179235,63913.0,63912.0,0.08610281]
[1724540325504,0.179235,63913.0,63912.0,0.024]
[1724540325697,0.179235,63913.0,63912.0,0.08610208]
[1724540325898,0.179235,63913.0,63912.0,0.024]
[1724540335402,0.00104,63913.0,63912.0,0.124]
[1724540335601,0.00104,63913.0,63912.0,0.26759684]
[1724540335910,0.45023145,63918.0,63914.0,0.078193]
[1724540336102,0.44915145,63918.0,63916.0,0.1]
[1724540337101,0.08935145,63918.0,63916.0,0.1]
[1724540337302,0.002,63918.0,63917.0,0.10263725]
[1724540337501,0.002,63918.0,63917.0,0.2707785]
[1724540337906,0.078184,63923.0,63921.0,0.1]
[1724540338100,0.078184,63923.0,63922.0,0.3608]
[1724540338904,0.078184,63923.0,63922.0,0.438984]
[1724540339311,0.178184,63923.0,63922.0,0.50105363]
[1724540339712,0.18843398,63923.0,63922.0,0.50105363]
[1724540339908,0.18843398,63923.0,63922.0,0.438984]
[1724540340621,0.18843398,63923.0,63922.0,0.447984]
[1724540341209,0.18843398,63923.0,63922.0,0.446984]
[1724540341605,0.18843398,63923.0,63922.0,0.50903307]
[1724540342211,0.18843398,63923.0,63922.0,0.50803307]
[1724540343218,0.18843398,63923.0,63922.0,0.445984]
[1724540343412,0.18843398,63923.0,63922.0,0.50803307]
[1724540344118,0.01024998,63923.0,63922.0,0.545984]
[1724540344323,0.1,63926.0,63924.0,0.078182]
[1724540344518,0.1,63926.0,63925.0,0.04650325]
[1724540345214,0.01028602,63927.0,63926.0,0.07818]
[1724540345416,0.01028602,63927.0,63926.0,0.12468147]
[1724540345827,0.01028602,63927.0,63926.0,0.07818]
[1724540346216,0.01028602,63927.0,63926.0,0.12466444]
[1724540346414,0.01228602,63927.0,63926.0,0.12466444]
[1724540347114,0.01228602,63927.0,63926.0,0.12666444]
[1724540348213,0.01028602,63927.0,63926.0,0.08018]
[1724540348824,0.01028602,63927.0,63926.0,0.44098]
[1724540349123,0.01028602,63927.0,63926.0,0.44102]
[1724540349718,0.00023464,63927.0,63926.0,0.44102]
[1724540349920,0.3608,63936.0,63935.0,0.078169]
[1724540350125,0.37076263,63936.0,63935.0,0.078169]
[1724540350327,0.47076263,63936.0,63935.0,0.078169]
[1724540350527,0.47076263,63936.0,63935.0,0.438969]
[1724540350528,0.10996263,63936.0,63935.0,0.438969]
[1724540350726,0.10996263,63936.0,63935.0,0.439009]
[1724540351126,0.10996263,63936.0,63935.0,0.440009]
[1724540351127,0.11796263,63936.0,63935.0,0.440009]
[1724540351522,0.12796263,63936.0,63935.0,0.441009]
[1724540354419,0.20612963,63936.0,63935.0,0.00204]
[1724540354729,0.25132963,63936.0,63935.0,0.00204]
[1724540358028,0.20612963,63936.0,63935.0,0.00204]
[1724540372340,0.20612963,63936.0,63935.0,0.04849694]
[1724540374541,0.20612963,63936.0,63935.0,0.00204]
[1724540376138,0.10612963,63936.0,63935.0,0.00204]
[1724540376344,0.20612963,63936.0,63935.0,0.00204]
[1724540378944,0.20612963,63936.0,63935.0,0.06398259]
[1724540379140,0.20612963,63936.0,63935.0,0.00204]
[1724540379447,0.20612963,63936.0,63935.0,0.06398259]
[1724540380746,0.20612963,63936.0,63935.0,0.00204]
[1724540381457,0.10612963,63936.0,63935.0,0.06398259]
[1724540381651,0.20612963,63936.0,63935.0,0.06398259]
[1724540384554,0.10612963,63936.0,63935.0,0.06398259]
[1724540384754,0.10612963,63936.0,63935.0,0.00204]
[1724540384755,0.20612963,63936.0,63935.0,0.00204]
[1724540385661,0.20612963,63936.0,63935.0,0.06398259]
[1724540388863,0.20612963,63936.0,63935.0,0.00204]
[1724540389760,0.20612963,63936.0,63935.0,0.06398259]
[1724540390152,0.20612963,63936.0,63924.0,0.01022789]
[1724540390153,0.29868909,63922.0,63905.0,0.04663615]
[1724540390360,0.156452,63888.0,63887.0,0.00088]
[1724540390551,0.07823,63885.0,63884.0,0.13978853]
[1724540390759,0.20359355,63885.0,63884.0,0.0932723]
[1724540390957,0.75729385,63885.0,63884.0,0.0932723]
[1724540391353,0.20359355,63885.0,63884.0,0.0932723]
[1724540391753,0.20459355,63885.0,63884.0,0.1032723]
[1724540391958,0.21242597,63885.0,63884.0,0.1032723]
[1724540392163,0.21242597,63885.0,63884.0,0.01]
[1724540392364,0.07824,63877.0,63874.0,0.3608]
[1724540392563,0.14038103,63877.0,63874.0,0.3608]
[1724540392863,0.14038103,63877.0,63874.0,0.48296]
[1724540393055,0.07824,63877.0,63874.0,0.48296]
[1724540394056,0.07824,63877.0,63876.0,0.00614804]
[1724540394057,0.08024,63877.0,63876.0,0.00614804]
[1724540395060,0.07924,63877.0,63876.0,0.00614804]
[1724540395252,0.09036118,63877.0,63876.0,0.00614804]
[1724540395660,0.33036118,63877.0,63876.0,0.00614804]
[1724540395867,0.37686135,63877.0,63876.0,0.00614804]
[1724540396163,0.078255,63865.0,63860.0,0.3608]
[1724540396761,0.078255,63865.0,63859.0,0.05865719]
[1724540396762,0.078257,63864.0,63859.0,0.05865719]
[1724540396963,0.078257,63864.0,63859.0,0.0483]
[1724540397158,0.07826,63861.0,63853.0,0.3608]
[1724540397364,0.07826,63861.0,63854.0,0.12224]
[1724540397565,0.0001444,63863.0,63853.0,0.3608]
[1724540397773,0.0001444,63863.0,63853.0,0.48304]
[1724540397774,0.078261,63860.0,63853.0,0.48304]
[1724540398071,0.078261,63860.0,63853.0,0.3608]
[1724540398574,0.078261,63860.0,63853.0,0.37092731]
[1724540399269,0.0011444,63863.0,63853.0,0.44919531]
[1724540399473,0.0011444,63863.0,63860.0,0.3608]
[1724540399774,0.0021444,63863.0,63860.0,0.3608]
[1724540400365,0.0011444,63863.0,63860.0,0.3608]
[1724540400967,0.0021444,63863.0,63860.0,0.3608]
[1724540401582,0.0021444,63863.0,63860.0,0.3583]
[1724540402884,0.0011444,63863.0,63860.0,0.3583]
[1724540403071,0.0011444,63863.0,63860.0,0.3593]
[1724540403273,0.0011444,63863.0,63860.0,0.001]
[1724540404083,0.0001444,63863.0,63860.0,0.001]
[1724540404881,0.0759014,63863.0,63860.0,0.001]
[1724540409979,0.0759014,63863.0,63861.0,0.078259]
[1724540410175,0.3608,63867.0,63863.0,0.078257]
[1724540410482,0.078253,63866.0,63863.0,0.078257]
[1724540411779,0.079253,63866.0,63863.0,0.078257]
[1724540412173,0.079253,63866.0,63860.0,0.3618]
[1724540412390,0.078253,63866.0,63860.0,0.3618]
[1724540412585,0.078253,63866.0,63860.0,0.001]
[1724540412786,0.078253,63866.0,63863.0,0.078256]
[1724540413785,0.079253,63866.0,63863.0,0.078256]
[1724540414591,0.078253,63866.0,63863.0,0.079256]
[1724540414789,0.079253,63866.0,63863.0,0.079256]
[1724540415788,0.079253,63866.0,63864.0,0.0475]
[1724540416288,0.12567877,63866.0,63864.0,0.0475]
[1724540416490,0.12567877,63866.0,63864.0,0.125755]
[1724540417285,0.06190103,63866.0,63865.0,0.078254]
[1724540417485,0.06190103,63866.0,63864.0,0.0475]
[1724540417486,0.07190778,63868.0,63866.0,0.078252]
[1724540418295,0.07767629,63867.0,63866.0,0.078252]
[1724540419185,0.10765239,63867.0,63866.0,0.078252]
[1724540419583,0.10765239,63867.0,63866.0,0.079252]
[1724540419982,0.10765239,63867.0,63866.0,0.001]
[1724540420186,0.18590439,63867.0,63866.0,0.078252]
[1724540420500,0.29710724,63867.0,63866.0,0.078252]
[1724540420685,0.21885524,63867.0,63864.0,0.0475]
[1724540420992,0.18590639,63866.0,63864.0,0.0475]
[1724540421191,0.10765239,63865.0,63864.0,0.125755]
[1724540421392,0.02536843,63865.0,63864.0,0.125755]
[1724540421587,0.10362043,63867.0,63864.0,0.125755]
[1724540421793,0.10540726,63866.0,63864.0,0.125755]
[1724540422088,0.10524119,63865.0,63864.0,0.125755]
[1724540422494,0.07987276,63865.0,63864.0,0.125755]
[1724540423194,0.07987276,63865.0,63864.0,0.126755]
[1724540423698,0.10524119,63865.0,63864.0,0.126755]
[1724540423999,0.18349519,63865.0,63864.0,0.126755]
[1724540424196,0.29269804,63865.0,63864.0,0.126755]
[1724540425096,0.18349519,63865.0,63864.0,0.126755]
[1724540425296,0.078254,63865.0,63864.0,0.126755]
[1724540425685,0.27547663,63865.0,63864.0,0.126755]
[1724540426795,0.27547663,63865.0,63864.0,0.0485]
[1724540428200,0.27547663,63865.0,63864.0,0.001]
[1724540428993,0.078264,63857.0,63856.0,0.01022025]
[1724540429300,0.15654686,63857.0,63856.0,0.078265]
[1724540429499,0.18191529,63857.0,63856.0,0.078265]
[1724540429688,0.18197551,63857.0,63856.0,0.078265]
[1724540430196,0.18297551,63857.0,63856.0,0.078265]
[1724540430595,0.10471151,63857.0,63856.0,0.078265]
[1724540430797,0.10471151,63857.0,63856.0,0.548065]
[1724540430798,0.02636843,63857.0,63856.0,0.548065]
[1724540431596,0.02640843,63857.0,63856.0,0.548065]
[1724540431795,0.02640843,63857.0,63856.0,0.948065]
[1724540432296,0.02740843,63857.0,63856.0,0.949065]
[1724540432999,0.02740843,63857.0,63856.0,1.309865]
[1724540434797,0.02740843,63857.0,63856.0,0.909865]
[1724540435304,0.02740843,63857.0,63856.0,0.93433223]
[1724540435507,0.0274101,63857.0,63856.0,0.93433223]
[1724540435798,0.02741016,63857.0,63856.0,0.93433223]
[1724540436305,0.02741016,63857.0,63856.0,0.909865]
[1724540436500,0.02741016,63857.0,63856.0,0.46453213]
[1724540437202,0.02541016,63857.0,63856.0,0.93333213]
[1724540437398,0.00204,63857.0,63856.0,0.93433213]
[1724540438197,0.02741016,63857.0,63856.0,0.46453213]
[1724540438600,0.02741016,63857.0,63856.0,0.10373213]
[1724540438795,0.02641016,63857.0,63856.0,0.46453213]
[1724540438999,0.02741016,63857.0,63856.0,0.46453213]
[1724540439499,0.02741016,63857.0,63856.0,0.46453206]
[1724540440101,0.02741016,63857.0,63856.0,0.10373206]
[1724540440301,0.09593169,63857.0,63856.0,0.46453206]
[1724540440502,0.09593169,63857.0,63856.0,0.440065]
[1724540440699,0.12130133,63857.0,63856.0,0.93433182]
[1724540443506,0.12130133,63857.0,63856.0,0.46453182]
[1724540444310,0.02740964,63857.0,63856.0,0.46453182]
[1724540445402,0.02740964,63857.0,63856.0,0.10373182]
[1724540445698,0.02740964,63857.0,63856.0,0.46453182]
[1724540446106,0.02740964,63857.0,63856.0,0.440065]
[1724540446414,0.02740964,63857.0,63856.0,0.46453112]
[1724540446610,0.02740964,63857.0,63856.0,0.800865]
[1724540446809,0.02740964,63857.0,63856.0,0.82533113]
[1724540447017,0.02740964,63857.0,63856.0,0.10373113]
[1724540447203,0.02740964,63857.0,63856.0,0.84490403]
[1724540448909,0.02740964,63857.0,63856.0,0.82533113]
[1724540449518,0.02740964,63857.0,63856.0,0.4645321]
[1724540450027,0.02740996,63857.0,63856.0,0.1037321]
[1724540450211,0.02740996,63857.0,63856.0,0.4645321]
[1724540451111,0.02740996,63857.0,63856.0,0.48410518]
[1724540451911,0.08028332,63857.0,63856.0,0.48410518]
[1724540452112,0.02740818,63857.0,63856.0,0.48410518]